bitfinex/quotes_SOLUSD_20230116
["timestamp","ask_amount","ask_price","bid_price","bid_amount"]
[1673842052541,17.0,23.297,23.283,117.391]
[1673842052735,17.0,23.297,23.284,20.0]
[1673842055684,20.0,23.298,23.284,20.0]
[1673842055894,20.0,23.3,23.284,20.0]
[1673842056109,17.0,23.299,23.284,20.0]
[1673842056325,20.0,23.298,23.284,20.0]
[1673842056644,15.0,23.298,23.284,20.0]
[1673842058953,20.0,23.3,23.284,20.0]
[1673842062519,20.0,23.307,23.284,20.0]
[1673842062732,17.0,23.306,23.284,20.0]
[1673842062953,20.0,23.305,23.284,20.0]
[1673842063272,17.0,23.304,23.284,20.0]
[1673842063588,17.0,23.304,23.286,20.0]
[1673842063800,20.0,23.303,23.286,20.0]
[1673842063989,17.0,23.302,23.286,20.0]
[1673842064323,20.0,23.301,23.286,20.0]
[1673842068422,20.0,23.301,23.284,20.0]
[1673842068629,17.0,23.3,23.284,20.0]
[1673842068822,20.0,23.299,23.284,20.0]
[1673842070204,20.0,23.306,23.285,17.0]
[1673842070418,20.0,23.307,23.285,17.0]
[1673842070626,20.0,23.307,23.286,20.0]
[1673842070840,20.0,23.307,23.287,17.0]
[1673842071993,17.0,23.306,23.287,17.0]
[1673842072203,20.0,23.305,23.288,20.0]
[1673842072402,20.0,23.305,23.289,17.0]
[1673842072830,20.0,23.307,23.289,17.0]
[1673842073052,17.0,23.306,23.289,17.0]
[1673842073391,20.0,23.305,23.289,17.0]
[1673842075672,20.0,23.305,23.286,20.0]
[1673842075891,17.0,23.304,23.287,17.0]
[1673842076199,20.0,23.303,23.286,20.0]
[1673842076507,17.0,23.302,23.286,20.0]
[1673842076716,20.0,23.301,23.286,20.0]
[1673842077037,20.0,23.303,23.286,20.0]
[1673842077240,17.0,23.302,23.286,20.0]
[1673842077450,20.0,23.301,23.284,20.0]
[1673842077667,20.0,23.301,23.283,117.391]
[1673842077872,17.0,23.3,23.283,117.391]
[1673842078090,29.56,23.3,23.283,117.391]
[1673842078298,40.0,23.299,23.283,117.391]
[1673842078491,17.0,23.298,23.283,117.391]
[1673842078703,20.0,23.297,23.283,117.391]
[1673842078914,17.0,23.296,23.283,117.391]
[1673842079122,20.0,23.295,23.283,117.391]
[1673842079340,20.0,23.297,23.283,117.391]
[1673842079870,17.0,23.296,23.283,117.391]
[1673842080073,20.0,23.295,23.283,117.391]
[1673842080719,20.0,23.297,23.283,117.391]
[1673842080929,17.0,23.296,23.283,117.391]
[1673842081358,20.0,23.295,23.283,117.391]
[1673842081874,39.99078315,23.3,23.283,117.391]
[1673842082089,20.0,23.299,23.283,117.391]
[1673842082515,20.0,23.299,23.284,20.0]
[1673842082724,20.0,23.299,23.285,17.0]
[1673842082934,20.0,23.3,23.285,17.0]
[1673842083140,27.43078315,23.306,23.286,20.0]
[1673842083141,20.0,23.305,23.286,20.0]
[1673842083465,71.7445559,23.306,23.286,20.0]
[1673842084719,20.0,23.305,23.286,20.0]
[1673842084936,17.0,23.304,23.286,20.0]
[1673842085243,20.0,23.303,23.286,20.0]
[1673842086093,20.0,23.303,23.288,20.0]
[1673842086276,20.0,23.305,23.288,20.0]
[1673842086488,12.57,23.32,23.29,32.57]
[1673842086703,20.0,23.317,23.291,112.3393]
[1673842086915,20.0,23.317,23.292,17.0]
[1673842087141,20.0,23.317,23.293,20.0]
[1673842087345,20.0,23.317,23.294,17.0]
[1673842087665,20.0,23.317,23.295,20.0]
[1673842087851,17.0,23.316,23.295,20.0]
[1673842088069,17.0,23.317,23.295,20.0]
[1673842088598,17.0,23.317,23.297,20.0]
[1673842089226,20.0,23.316,23.297,20.0]
[1673842089447,17.0,23.315,23.297,20.0]
[1673842089649,20.0,23.314,23.297,20.0]
[1673842089851,17.0,23.313,23.297,20.0]
[1673842090382,20.0,23.312,23.297,20.0]
[1673842092188,20.0,23.318,23.297,20.0]
[1673842092383,17.0,23.317,23.297,20.0]
[1673842092584,20.0,23.316,23.297,20.0]
[1673842092788,17.0,23.315,23.297,20.0]
[1673842093002,27.43078315,23.319,23.3,12.57]
[1673842093210,12.57,23.32,23.3,12.57]
[1673842093211,20.0,23.318,23.3,12.57]
[1673842093433,20.0,23.318,23.302,20.0]
[1673842093852,20.0,23.319,23.302,20.0]
[1673842094488,17.0,23.318,23.302,20.0]
[1673842097644,20.0,23.319,23.302,20.0]
[1673842097851,20.0,23.319,23.303,17.0]
[1673842098063,20.0,23.321,23.303,17.0]
[1673842098272,17.0,23.32,23.303,17.0]
[1673842098493,20.0,23.319,23.303,17.0]
[1673842099108,20.0,23.319,23.304,20.0]
[1673842099319,20.0,23.321,23.306,20.0]
[1673842099944,17.5,23.321,23.304,20.0]
[1673842100270,17.5,23.321,23.302,109.6474]
[1673842100676,17.5,23.321,23.303,20.0]
[1673842101939,17.5,23.321,23.304,17.0]
[1673842102902,17.5,23.321,23.305,20.0]
[1673842103430,17.5,23.321,23.306,17.0]
[1673842105635,17.5,23.321,23.305,20.0]
[1673842106579,32.57,23.33,23.306,17.0]
[1673842106580,20.0,23.328,23.306,17.0]
[1673842106791,20.0,23.329,23.306,17.0]
[1673842106995,20.0,23.329,23.307,20.0]
[1673842107211,20.0,23.329,23.31,12.57]
[1673842108279,20.0,23.329,23.312,20.0]
[1673842108697,20.0,23.327,23.31,12.57]
[1673842109014,37.0,23.326,23.307,20.0]
[1673842109224,37.0,23.326,23.308,17.0]
[1673842110372,20.0,23.325,23.3,12.57]
[1673842110569,12.44,23.32,23.3,12.57]
[1673842110781,20.0,23.319,23.3,12.57]
[1673842112290,20.0,23.324,23.3,12.57]
[1673842112584,17.0,23.318,23.3,12.57]
[1673842112777,20.0,23.324,23.3,12.57]
[1673842112988,17.0,23.323,23.303,20.0]
[1673842113214,20.0,23.322,23.303,20.0]
[1673842113427,17.0,23.321,23.303,20.0]
[1673842113636,20.0,23.322,23.303,20.0]
[1673842113837,20.0,23.325,23.304,17.0]
[1673842114255,20.0,23.325,23.305,20.0]
[1673842114459,20.0,23.325,23.306,17.0]
[1673842117190,27.43078315,23.326,23.307,20.0]
[1673842117401,36.77377275,23.334,23.31,12.45]
[1673842117608,36.77377275,23.334,23.312,20.0]
[1673842117818,27.43078315,23.338,23.313,17.0]
[1673842118043,27.43078315,23.338,23.314,20.0]
[1673842118251,27.43078315,23.338,23.315,17.0]
[1673842120038,27.43078315,23.338,23.32,12.57]
[1673842120355,27.43078315,23.338,23.321,37.0]
[1673842120570,56.77254108,23.34,23.321,37.0]
[1673842123620,20.0,23.339,23.321,37.0]
[1673842125296,20.0,23.339,23.321,20.0]
[1673842126666,20.0,23.339,23.322,17.0]
[1673842133056,20.0,23.339,23.323,20.0]
[1673842133275,20.0,23.339,23.324,17.0]
[1673842136220,20.0,23.339,23.323,20.0]
[1673842137179,20.0,23.339,23.322,20.0]
[1673842138536,20.0,23.339,23.323,17.0]
[1673842138871,20.0,23.339,23.324,20.0]
[1673842139280,17.0,23.338,23.321,20.0]
[1673842139490,17.0,23.338,23.315,114.2415]
[1673842147493,20.0,23.339,23.315,114.2415]
[1673842147683,20.0,23.339,23.318,20.0]
[1673842147899,20.0,23.339,23.319,17.0]
[1673842148121,20.0,23.339,23.318,20.0]
[1673842148955,17.0,23.338,23.318,20.0]
[1673842149395,20.0,23.339,23.32,12.53]
[1673842149593,20.0,23.339,23.321,17.0]
[1673842149802,20.0,23.339,23.322,20.0]
[1673842150131,20.0,23.339,23.324,20.0]
[1673842150348,20.0,23.339,23.325,17.0]
[1673842150652,20.0,23.339,23.326,20.0]
[1673842153279,20.0,23.339,23.324,20.0]
[1673842153482,17.0,23.338,23.31,32.57]
[1673842153698,20.0,23.337,23.31,32.57]
[1673842154018,17.0,23.336,23.31,32.57]
[1673842154220,20.0,23.335,23.31,32.57]
[1673842154433,17.0,23.334,23.31,32.57]
[1673842154840,20.0,23.333,23.31,32.57]
[1673842155057,17.0,23.332,23.31,32.57]
[1673842155384,20.0,23.331,23.31,32.57]
[1673842155787,20.0,23.337,23.316,20.0]
[1673842156227,20.0,23.337,23.317,17.0]
[1673842156430,20.0,23.337,23.318,20.0]
[1673842156859,20.0,23.337,23.32,20.0]
[1673842157479,17.0,23.336,23.32,20.0]
[1673842157695,20.0,23.335,23.32,20.0]
[1673842158329,20.0,23.335,23.321,17.0]
[1673842158543,20.0,23.339,23.321,17.0]
[1673842159806,20.0,23.339,23.32,20.0]
[1673842160210,17.0,23.338,23.32,20.0]
[1673842161476,20.0,23.339,23.32,20.0]
[1673842162320,20.0,23.339,23.321,17.0]
[1673842163061,20.0,23.339,23.323,20.0]
[1673842163803,17.0,23.338,23.323,20.0]
[1673842165277,20.0,23.337,23.32,20.0]
[1673842165471,17.0,23.336,23.32,20.0]
[1673842165681,20.0,23.335,23.32,20.0]
[1673842166011,17.0,23.334,23.32,20.0]
[1673842166223,20.0,23.333,23.301,20.0]
[1673842166543,20.0,23.333,23.306,41.46196354]
[1673842166731,20.0,23.333,23.316,37.0]
[1673842166944,20.0,23.333,23.317,20.0]
[1673842167154,17.0,23.332,23.316,20.0]
[1673842167380,20.0,23.331,23.306,20.0]
[1673842167599,17.0,23.33,23.306,20.0]
[1673842167793,20.0,23.329,23.31,20.0]
[1673842168001,17.0,23.328,23.304,118.5569]
[1673842168220,20.0,23.327,23.304,118.5569]
[1673842168435,17.0,23.326,23.304,118.5569]
[1673842168637,20.0,23.325,23.304,118.5569]
[1673842168848,17.0,23.324,23.304,118.5569]
[1673842169165,12.56,23.32,23.305,20.0]
[1673842169373,37.0,23.319,23.305,20.0]
[1673842169583,37.0,23.319,23.304,118.5569]
[1673842169795,20.0,23.319,23.304,118.5569]
[1673842170959,17.0,23.318,23.304,118.5569]
[1673842171480,20.0,23.319,23.305,20.0]
[1673842173988,20.0,23.319,23.306,17.0]
[1673842174414,20.0,23.319,23.307,20.0]
[1673842174640,20.0,23.319,23.308,17.0]
[1673842175457,20.0,23.319,23.31,12.57]
[1673842175680,20.0,23.319,23.311,17.0]
[1673842175892,17.169397,23.32,23.312,20.0]
[1673842177891,56.83254108,23.34,23.312,20.0]
[1673842178088,56.83254108,23.34,23.32,12.57]
[1673842178518,56.83254108,23.34,23.321,17.0]
[1673842178740,56.83254108,23.34,23.322,20.0]
[1673842178928,44.26254108,23.34,23.322,20.0]
[1673842179259,44.26254108,23.34,23.323,17.0]
[1673842179473,44.26254108,23.34,23.324,20.0]
[1673842179684,44.26254108,23.34,23.325,17.0]
[1673842181245,20.0,23.339,23.325,17.0]
[1673842183463,9.5,23.339,23.326,20.0]
[1673842183662,44.26254108,23.34,23.326,20.0]
[1673842185252,20.0,23.339,23.326,20.0]
[1673842186509,20.0,23.339,23.328,20.0]
[1673842189142,44.26254108,23.34,23.328,20.0]
[1673842189358,44.26254108,23.34,23.33,20.0]
[1673842191660,44.26254108,23.34,23.326,20.0]
[1673842191856,44.26254108,23.34,23.325,115.9984]
[1673842192700,20.0,23.339,23.326,20.0]
[1673842198707,17.0,23.338,23.326,20.0]
[1673842199022,20.0,23.337,23.326,20.0]
[1673842201124,20.0,23.339,23.326,20.0]
[1673842206371,44.26254108,23.34,23.33,12.57]
[1673842206913,24.26254108,23.34,23.331,17.0]
[1673842207517,24.26254108,23.34,23.332,20.0]
[1673842207738,24.26254108,23.34,23.333,17.0]
[1673842208147,24.26254108,23.34,23.334,20.0]
[1673842210590,17.145939,23.351,23.33,12.57]
[1673842210794,49.57,23.35,23.33,12.57]
[1673842211197,20.0,23.349,23.33,12.57]
[1673842211408,37.0,23.348,23.33,12.57]
[1673842214997,20.0,23.347,23.33,12.57]
[1673842215316,17.0,23.346,23.33,12.57]
[1673842215823,17.0,23.347,23.33,12.57]
[1673842218669,20.0,23.346,23.325,135.9984]
[1673842218877,17.0,23.345,23.325,135.9984]
[1673842219208,20.0,23.344,23.326,20.0]
[1673842219404,17.0,23.343,23.326,20.0]
[1673842219618,20.0,23.342,23.326,20.0]
[1673842220579,20.0,23.342,23.327,17.0]
[1673842220784,20.0,23.347,23.327,17.0]
[1673842221003,17.0,23.346,23.33,12.53]
[1673842221609,20.0,23.347,23.33,12.53]
[1673842222767,20.0,23.349,23.33,12.53]
[1673842222982,20.0,23.35,23.332,20.0]
[1673842223519,20.0,23.355,23.333,17.0]
[1673842223736,20.0,23.355,23.334,20.0]
[1673842223924,126.9398,23.36,23.336,20.0]
[1673842224353,20.0,23.359,23.337,17.0]
[1673842224564,17.143452,23.357,23.337,136.5246]
[1673842224978,20.0,23.355,23.337,119.5246]
[1673842225523,30.88766469,23.355,23.337,119.5246]
[1673842225732,20.0,23.353,23.335,114.0576]
[1673842225928,37.0,23.352,23.335,114.0576]
[1673842226446,12.56,23.35,23.322,111.14]
[1673842226655,20.0,23.348,23.323,20.0]
[1673842226863,37.0,23.347,23.323,20.0]
[1673842230036,37.0,23.347,23.322,225.6284]
[1673842230244,20.0,23.346,23.322,225.6284]
[1673842230453,37.0,23.345,23.322,225.6284]
[1673842230972,37.0,23.345,23.323,20.0]
[1673842235598,37.0,23.345,23.322,225.6284]
[1673842235802,20.0,23.344,23.322,225.6284]
[1673842236015,37.0,23.343,23.323,20.0]
[1673842236340,37.0,23.342,23.323,20.0]
[1673842236534,37.0,23.345,23.323,20.0]
[1673842239170,20.0,23.344,23.323,20.0]
[1673842239379,20.0,23.346,23.324,17.0]
[1673842239612,20.0,23.346,23.325,20.0]
[1673842240557,29.83237481,23.347,23.33,12.57]
[1673842241386,57.04309623,23.35,23.33,12.57]
[1673842241595,20.0,23.349,23.33,12.57]
[1673842241808,17.0,23.348,23.33,12.57]
[1673842242009,20.0,23.347,23.33,12.57]
[1673842242221,17.0,23.346,23.33,12.57]
[1673842244340,17.0,23.347,23.33,12.57]
[1673842246016,17.0,23.349,23.33,12.57]
[1673842246215,20.0,23.348,23.33,12.57]
[1673842246423,17.0,23.347,23.33,12.57]
[1673842248313,20.0,23.348,23.33,12.57]
[1673842251067,20.0,23.346,23.33,12.57]
[1673842251276,17.0,23.347,23.33,12.57]
[1673842260006,20.0,23.348,23.33,12.57]
[1673842260214,20.0,23.348,23.332,20.0]
[1673842262194,20.0,23.348,23.333,17.0]
[1673842262405,20.0,23.353,23.332,20.0]
[1673842262724,20.0,23.353,23.333,109.4725]
[1673842263051,20.0,23.351,23.333,109.4725]
[1673842263264,37.0,23.35,23.333,109.4725]
[1673842263479,20.0,23.349,23.333,109.4725]
[1673842263687,37.0,23.348,23.333,109.4725]
[1673842266094,44.48309623,23.348,23.34,12.57]
[1673842266288,12.69,23.36,23.34,12.57]
[1673842266713,28.03111669,23.357,23.34,12.57]
[1673842266916,28.03111669,23.357,23.341,17.0]
[1673842267131,10.88766469,23.357,23.341,17.0]
[1673842268611,10.88766469,23.357,23.342,20.0]
[1673842268830,10.88766469,23.357,23.343,17.0]
[1673842269045,10.88766469,23.357,23.344,20.0]
[1673842269780,10.88766469,23.357,23.342,20.0]
[1673842272509,10.88766469,23.357,23.34,12.57]
[1673842272925,17.0,23.356,23.34,12.57]
[1673842273127,10.88766469,23.357,23.34,12.57]
[1673842273343,17.138556,23.363,23.34,12.57]
[1673842273552,20.0,23.362,23.34,12.57]
[1673842273973,20.0,23.362,23.341,17.0]
[1673842274181,20.0,23.362,23.342,20.0]
[1673842274397,17.138556,23.363,23.343,37.0]
[1673842274595,17.138556,23.363,23.344,20.0]
[1673842274806,17.138556,23.363,23.343,17.0]
[1673842274807,20.0,23.362,23.34,12.57]
[1673842275030,51.21904147,23.362,23.34,12.57]
[1673842275354,31.21904147,23.361,23.34,12.57]
[1673842275550,40.0,23.36,23.34,12.57]
[1673842275763,17.0,23.359,23.34,12.57]
[1673842276073,20.0,23.358,23.34,12.57]
[1673842276286,17.0,23.357,23.34,12.57]
[1673842278277,20.0,23.358,23.34,12.57]
[1673842278488,20.0,23.359,23.341,17.0]
[1673842278806,20.0,23.36,23.342,20.0]
[1673842279136,20.0,23.36,23.343,17.0]
[1673842282901,17.0,23.359,23.34,12.57]
[1673842283236,20.0,23.358,23.335,114.8648]
[1673842283453,17.0,23.357,23.335,114.8648]
[1673842283646,20.0,23.356,23.335,114.8648]
[1673842283975,17.0,23.355,23.335,114.8648]
[1673842284162,20.0,23.354,23.335,114.8648]
[1673842284373,17.0,23.353,23.335,114.8648]
[1673842284580,20.0,23.352,23.335,114.8648]
[1673842284811,17.0,23.351,23.335,114.8648]
[1673842285023,20.0,23.35,23.335,114.8648]
[1673842285224,20.0,23.35,23.34,12.57]
[1673842285645,20.0,23.354,23.34,12.57]
[1673842286060,20.0,23.358,23.34,12.57]
[1673842286477,51.21904147,23.358,23.34,12.57]
[1673842286692,20.0,23.357,23.34,12.57]
[1673842286902,20.0,23.356,23.34,12.57]
[1673842287125,17.0,23.355,23.34,12.57]
[1673842287321,20.0,23.354,23.34,12.57]
[1673842289232,17.0,23.353,23.336,17.0]
[1673842289424,17.0,23.353,23.336,20.0]
[1673842289629,20.0,23.352,23.335,114.8648]
[1673842289840,37.0,23.351,23.335,114.8648]
[1673842290255,20.0,23.35,23.335,114.8648]
[1673842290470,17.0,23.349,23.335,114.8648]
[1673842290675,20.0,23.348,23.335,114.8648]
[1673842294476,17.0,23.347,23.335,114.8648]
[1673842295979,20.0,23.348,23.335,114.8648]
[1673842296155,20.0,23.349,23.335,114.8648]
[1673842296489,17.0,23.348,23.335,114.8648]
[1673842296688,20.0,23.347,23.335,114.8648]
[1673842297126,20.0,23.347,23.33,12.57]
[1673842297435,17.0,23.346,23.33,12.57]
[1673842298682,20.0,23.347,23.334,20.0]
[1673842298902,20.0,23.349,23.334,20.0]
[1673842299852,20.0,23.354,23.334,20.0]
[1673842300060,37.0,23.353,23.336,20.0]
[1673842300580,20.0,23.353,23.336,20.0]
[1673842300793,20.0,23.357,23.338,20.0]
[1673842301107,20.0,23.357,23.34,12.57]
[1673842301329,51.21904147,23.357,23.33,12.53]
[1673842301512,99.09015952,23.357,23.33,12.53]
[1673842301722,20.0,23.356,23.335,106.1083]
[1673842301934,20.0,23.355,23.335,106.1083]
[1673842302162,17.0,23.354,23.336,20.0]
[1673842302492,20.0,23.353,23.336,20.0]
[1673842302876,20.0,23.353,23.337,17.0]
[1673842304274,20.0,23.356,23.337,17.0]
[1673842305103,20.0,23.354,23.336,20.0]
[1673842305414,37.0,23.353,23.336,20.0]
[1673842305628,117.2716,23.361,23.341,20.0]
[1673842305820,20.0,23.36,23.342,17.0]
[1673842306036,20.0,23.36,23.341,20.0]
[1673842307115,17.0,23.359,23.341,20.0]
[1673842307309,20.0,23.358,23.341,20.0]
[1673842310581,20.0,23.358,23.34,12.57]
[1673842310803,17.0,23.357,23.34,12.57]
[1673842313845,20.0,23.358,23.34,12.57]
[1673842314040,20.0,23.359,23.34,12.57]
[1673842314254,17.0,23.358,23.342,20.0]
[1673842314461,20.0,23.357,23.342,20.0]
[1673842315205,20.0,23.357,23.343,17.0]
[1673842315421,12.57,23.37,23.343,17.0]
[1673842315422,20.0,23.362,23.344,20.0]
[1673842315838,20.0,23.362,23.345,17.0]
[1673842316577,20.0,23.362,23.346,20.0]
[1673842318175,12.57,23.37,23.346,20.0]
[1673842318388,12.57,23.37,23.347,17.0]
[1673842318573,12.57,23.37,23.346,20.0]
[1673842319205,20.0,23.362,23.346,20.0]
[1673842319638,17.0,23.361,23.346,20.0]
[1673842319850,20.0,23.36,23.346,20.0]
[1673842320904,20.0,23.36,23.347,17.0]
[1673842321118,20.0,23.365,23.347,17.0]
[1673842321747,20.0,23.365,23.348,20.0]
[1673842321961,20.0,23.365,23.349,17.0]
[1673842322595,20.0,23.365,23.348,20.0]
[1673842323417,20.0,23.365,23.349,17.0]
[1673842325215,20.0,23.365,23.348,20.0]
[1673842325954,17.0,23.364,23.348,20.0]
[1673842326151,20.0,23.363,23.348,20.0]
[1673842326372,48.35583347,23.366,23.348,20.0]
[1673842326686,37.0,23.365,23.348,20.0]
[1673842326877,20.0,23.365,23.349,17.0]
[1673842328456,48.35583347,23.366,23.35,20.0]
[1673842328671,17.136792,23.366,23.35,32.57]
[1673842331423,17.0,23.365,23.35,32.57]
[1673842331633,17.0,23.365,23.35,12.57]
[1673842333188,17.136792,23.366,23.35,12.57]
[1673842335633,12.57,23.37,23.35,12.57]
[1673842335941,20.0,23.369,23.352,20.0]
[1673842336341,17.0,23.368,23.352,20.0]
[1673842336552,20.0,23.367,23.352,20.0]
[1673842337621,20.0,23.368,23.352,20.0]
[1673842337833,20.0,23.368,23.353,17.0]
[1673842339921,20.0,23.368,23.35,12.57]
[1673842340344,17.134485,23.369,23.36,12.57]
[1673842340556,17.134485,23.369,23.361,17.0]
[1673842344463,13.134485,23.369,23.361,17.0]
[1673842344667,13.134485,23.369,23.362,20.0]
[1673842344881,13.134485,23.369,23.363,17.0]
[1673842345093,13.134485,23.369,23.364,20.0]
[1673842346562,13.134485,23.369,23.362,20.0]
[1673842346753,13.134485,23.369,23.361,114.8932]
[1673842347181,20.0,23.385,23.362,20.0]
[1673842347385,37.0,23.384,23.362,20.0]
[1673842347605,20.0,23.384,23.362,20.0]
[1673842348228,20.0,23.384,23.361,110.2807]
[1673842348435,20.0,23.379,23.35,12.57]
[1673842348647,20.0,23.378,23.353,116.1164]
[1673842348857,61.20905139,23.378,23.353,116.1164]
[1673842349070,20.0,23.377,23.353,116.1164]
[1673842349294,20.0,23.375,23.353,116.1164]
[1673842349509,20.0,23.374,23.354,20.0]
[1673842349696,17.0,23.373,23.354,20.0]
[1673842349907,20.0,23.372,23.354,20.0]
[1673842350118,17.0,23.371,23.354,20.0]
[1673842350438,20.0,23.37,23.354,20.0]
[1673842350649,20.0,23.37,23.353,116.1164]
[1673842350845,20.0,23.375,23.354,20.0]
[1673842351061,37.0,23.374,23.354,20.0]
[1673842351272,20.0,23.373,23.354,20.0]
[1673842351602,20.0,23.371,23.354,20.0]
[1673842351811,20.0,23.37,23.354,20.0]
[1673842352132,20.0,23.37,23.355,17.0]
[1673842352324,20.0,23.372,23.355,17.0]
[1673842352535,20.0,23.373,23.355,17.0]
[1673842353077,20.0,23.373,23.356,20.0]
[1673842353400,20.0,23.375,23.357,17.0]
[1673842353589,20.0,23.374,23.357,17.0]
[1673842353801,20.0,23.374,23.356,20.0]
[1673842354239,20.0,23.376,23.356,20.0]
[1673842354561,16.5,23.375,23.357,17.0]
[1673842354867,20.0,23.374,23.357,17.0]
[1673842355803,20.0,23.377,23.354,20.0]
[1673842356128,20.0,23.376,23.354,20.0]
[1673842356341,20.0,23.376,23.355,20.0]
[1673842356550,20.0,23.376,23.353,116.1164]
[1673842356763,20.0,23.374,23.353,116.1164]
[1673842356959,17.0,23.373,23.353,116.1164]
[1673842357933,20.0,23.372,23.354,20.0]
[1673842358118,20.0,23.376,23.354,20.0]
[1673842359069,17.0,23.375,23.354,20.0]
[1673842359283,20.0,23.374,23.354,20.0]
[1673842359581,17.0,23.373,23.354,20.0]
[1673842359796,20.0,23.372,23.354,20.0]
[1673842360006,17.0,23.371,23.354,20.0]
[1673842360323,20.0,23.37,23.355,17.0]
[1673842360542,20.0,23.37,23.356,20.0]
[1673842360863,20.0,23.377,23.356,20.0]
[1673842360864,20.0,23.376,23.356,20.0]
[1673842361055,20.0,23.375,23.353,116.1164]
[1673842361271,20.0,23.374,23.353,116.1164]
[1673842361606,17.0,23.373,23.353,116.1164]
[1673842361803,20.0,23.372,23.353,116.1164]
[1673842362013,17.0,23.371,23.353,116.1164]
[1673842362341,20.0,23.37,23.354,20.0]
[1673842362752,20.0,23.37,23.355,17.0]
[1673842363076,20.0,23.376,23.354,20.0]
[1673842363278,17.0,23.375,23.354,20.0]
[1673842363491,20.0,23.374,23.354,20.0]
[1673842363688,17.0,23.373,23.355,17.0]
[1673842363899,20.0,23.372,23.355,17.0]
[1673842364450,20.0,23.372,23.356,20.0]
[1673842364756,20.0,23.377,23.356,20.0]
[1673842364972,20.0,23.377,23.357,17.0]
[1673842365492,20.0,23.377,23.358,20.0]
[1673842365806,20.0,23.379,23.359,17.0]
[1673842366778,44.59995347,23.384,23.359,17.0]
[1673842367390,20.0,23.383,23.359,17.0]
[1673842367595,44.59995347,23.384,23.359,17.0]
[1673842367823,17.0,23.379,23.359,17.0]
[1673842368034,20.0,23.378,23.359,17.0]
[1673842369703,20.0,23.379,23.359,17.0]